Cogmind - Beta 11.1 @@@ ROGUE MODE // 2022.07.30 @ 08:59:14 Player: tkc Result: Destroyed self with Mini Grenade Launcher Performance ------------- Evolutions (0) 0 Regions Visited (4) 800 Robots Destroyed (38) 190 Value Destroyed (550) 550 Prototype IDs (23) 460 Alien Tech Used (0) 0 Bonus (300) 300 TOTAL SCORE: 2300 Bonus ------- Aligned with FarCom 300 Cogmind --------- Core Integrity 0/250 Matter 135/300 Energy 100/100 System Corruption 0% Temperature Cool (0) Movement Treading (240) Ox1 Location -9/Mines Parts ------- > --- POWER (1) -------- (None) > --- PROPULSION (2) --- Light Treads > --- UTILITY (2) ------ Large Storage Unit > --- WEAPON (2) ------- Mini Grenade Launcher Maul > --- INVENTORY (15) --- Light Ion Engine Compact Matter Pod (150) Terrain Scanner Terrain Scan Processor EM Shotgun EM Shotgun Heavy Assault Rifle Makeshift Shrapnel Gun Rocket Launcher Mini Grenade Launcher Mini Grenade Launcher Maul Longsword +1 Peak State ------------ > --- POWER ------------ Light Ion Engine > --- PROPULSION ------- Light Treads Compact Wheel > --- UTILITY ---------- Large Storage Unit Light Armor Plating > --- WEAPON ----------- Maul Maul > --- INVENTORY -------- Light Ion Engine Light Treads Compact Wheel Compact Matter Pod Terrain Scanner Terrain Scan Processor EM Shotgun EM Shotgun Heavy Assault Rifle Makeshift Shrapnel Gun Rocket Launcher Mini Grenade Launcher Mini Grenade Launcher Mini Grenade Launcher Longsword +1 [Rating: 12] Favorites ----------- Power Light Ion Engine Engine Light Ion Engine Propulsion Compact Wheel Treads Light Treads Wheel Compact Wheel Utility Light Armor Plating Storage Large Storage Unit Protection Light Armor Plating Weapon EM Shotgun Energy Gun EM Shotgun Ballistic Gun Light Assault Rifle Launcher Mini Grenade Launcher Special Weapon Mining Laser Impact Weapon Maul Slashing Weapon Mining Claw Build | -11 -10 -10 -10 -9 ------- Run | Scr Mat Min Exi Min Slots Evolved . | . . . . . Power . | . . . . . Propulsion . | . . . . . Utility . | . . . . . Weapon . | . . . . . Parts Attached 51 | 14 25 6 2 4 Power 4 | 2 1 1 . . Engine 4 | 2 1 1 . . Core . | . . . . . Reactor . | . . . . . Propulsion 19 | 5 8 3 . 3 Treads 9 | 2 4 1 . 2 Leg . | . . . . . Wheel 10 | 3 4 2 . 1 Hover . | . . . . . Flight . | . . . . . Utility 5 | 2 3 . . . Device . | . . . . . Storage 3 | 2 1 . . . Processor . | . . . . . Hackware . | . . . . . Protection 2 | . 2 . . . Artifact . | . . . . . Weapon 23 | 5 13 2 2 1 Energy Gun 9 | 3 5 1 . . Energy Cannon . | . . . . . Ballistic Gun 4 | 2 2 . . . Ballistic Cannon . | . . . . . Launcher 2 | . . 1 . 1 Special Weapon 1 | . 1 . . . Impact Weapon 6 | . 4 . 2 . Slashing Weapon 1 | . 1 . . . Piercing Weapon . | . . . . . Special Melee Weapon . | . . . . . Unidentified Prototypes . | . . . . . Parts Lost 9 | . 1 3 . 5 Power 3 | . 1 1 . 1 Propulsion 5 | . . 2 . 3 Utility 1 | . . . . 1 Weapon . | . . . . . Highest Loss Streak 5 | . 1 2 . 5 To Critical Strikes . | . . . . . Average Slot Usage (%) 99 | . 99 100 100 83 Engine 13 | . 14 14 14 10 Treads 9 | . 6 10 14 12 Wheel 18 | . 21 17 14 12 Storage 14 | . 14 14 14 14 Protection 13 | . 13 14 14 6 Energy Gun 11 | . 13 14 . . Ballistic Gun 2 | . 4 . . . Launcher 3 | . . 10 . 14 Impact Weapon 9 | . 7 3 28 14 Naked Turns . | . . . . . Heaviest Build 32 | 11 32 32 32 30 Greatest Support 40 | 20 40 32 16 32 Greatest Overweight (x) 1 | 1 1 1 1 1 Average Overweight (x) . | . . . 1 . Largest Inventory Capacity 15 | 8 15 15 15 15 Average Capacity 14 | 7 14 15 15 15 Most Carried 15 | 8 15 15 15 15 Average Carried 13 | 4 13 14 14 14 Final Capacity 15 | 8 15 15 15 15 Final Carried 15 | 8 15 15 15 13 Class Distribution -------------------- 100% | Mutant Dominant Class ---------------- Mutant | -10/Materials Mutant | -10/Mines Mutant | -10/Exiles Mutant | -9/Mines Resources | -11 -10 -10 -10 -9 ----------- Run | Scr Mat Min Exi Min Matter Collected 860 | 397 357 106 . . Remotely . | . . . . . Salvage Created 968 | 146 752 37 . 33 Parts 66 | 9 47 6 . 4 Haulers Intercepted 1 | . 1 . . . Recyclers Shooed 1 | . 1 . . . Parts Field Recycled . | . . . . . Retrieved Matter . | . . . . . Parts Self-Destructed . | . . . . . Prevented . | . . . . . Kills | -11 -10 -10 -10 -9 ------- Run | Scr Mat Min Exi Min Combat Hostiles Destroyed 28 | . 15 6 . 7 Guns 16 | . 15 1 . . AOE 12 | . . 5 . 7 Classes Destroyed 9 | 3 5 . . 1 Worker 4 | 1 3 . . . Builder 4 | . 4 . . . Tunneler 1 | 1 . . . . Hauler 1 | . 1 . . . Recycler 1 | 1 . . . . Operator 2 | . 2 . . . Swarmer 16 | . 6 6 . 4 Grunt 9 | . 9 . . . Assembled 3 | . . . . 3 Best Kill Streak 4 | 1 4 3 . 4 Combat Bots Only 4 | . 4 3 . 4 Max Kills in Single Turn 4 | 1 1 2 . 4 Gunslinging . | . . . . . Exploded 4 | . . 2 . 4 Melee . | . . . . . Uniques/NPCs Destroyed . | . . . . . Combat | -11 -10 -10 -10 -9 -------- Run | Scr Mat Min Exi Min Damage Taken 1187 | . 316 170 . 701 Core 253 | . 46 8 . 199 Absorbed by Shields . | . . . . . Regen/Repaired (Parts) 48 | . 48 . . . Core Remaining (%) 100 | 100 . . . . Volleys Fired 81 | 20 42 6 . 13 Largest 2 | 2 2 2 . 1 Hottest 90 | 70 90 90 . 30 Shots Fired 119 | 31 68 7 . 13 Gun 101 | 31 68 2 . . Cannon . | . . . . . Launcher 18 | . . 5 . 13 Special . | . . . . . Kinetic 24 | 17 7 . . . Thermal 17 | 10 7 . . . Explosive 18 | . . 5 . 13 Electromagnetic 60 | 4 54 2 . . Robot Hit Streak 12 | 5 12 3 . 1 Robot Miss Streak 6 | 4 6 2 . 3 Penetration Max . | . . . . . Secondary Targets 1 | . 1 . . . Max Gunslinging Chain 1 | . 1 . . . Shots Hit Robots 82 | 15 60 2 . 5 Core Hits 70 | 5 38 7 . 20 Critical Kills . | . . . . . Critical Parts Destroyed 3 | . 3 . . . Critical Strikes 3 | . 3 . . . Smash 3 | . 3 . . . Melee Attacks 27 | . 27 . . . Impact 20 | . 20 . . . Slashing 7 | . 7 . . . Piercing . | . . . . . Sneak Attacks 7 | . 7 . . . Combat Hostiles . | . . . . . Follow-up Attacks . | . . . . . Damage Inflicted 2567 | 185 1322 352 . 708 Guns 851 | 150 693 8 . . Cannons . | . . . . . Explosions 1110 | 35 28 339 . 708 Melee 601 | . 601 . . . Ramming 5 | . . 5 . . Kinetic 89 | 53 36 . . . Thermal 173 | 96 77 . . . Explosive 1047 | . . 339 . 708 Electromagnetic 652 | 36 608 8 . . Impact 601 | . 601 . . . Slashing . | . . . . . Piercing . | . . . . . Highest Corruption . | . . . . . Average Corruption . | . . . . . Corruption Purged . | . . . . . Corruption Blocked . | . . . . . Overload Shots . | . . . . . Overflow Damage 303 | . 290 9 . 4 Projectiles . | . . . . . Explosions 13 | . . 9 . 4 Melee 290 | . 290 . . . Knockbacks 3 | . 3 . . . Impact 3 | . 3 . . . Kinetic . | . . . . . Secondary . | . . . . . Self-Inflicted Damage 162 | . . 86 . 76 Shots 5 | . . 2 . 3 Rammed 1 | . . 1 . . Targets Rammed 1 | . . 1 . . Kicked . | . . . . . Crushed . | . . . . . Highest Temperature 273 | 70 273 39 . . Average Temperature 71 | 23 84 21 . . Received Heat Transfer 146 | . 126 . . 20 Effects 1 | . 1 . . . Energy Bleed 1 | . 1 . . . Siege Activations . | . . . . . Robots Corrupted . | . . . . . Combat Hostiles . | . . . . . Parts Fried 8 | . 8 . . . Impact Corruptions 8 | . 8 . . . Robots Melted . | . . . . . Combat Hostiles . | . . . . . Parts Melted 1 | 1 . . . . Heat Transferred 383 | 185 198 . . . Parts Sabotaged . | . . . . . Parts Stolen . | . . . . . Parts Stripped . | . . . . . Power Chain Reactions 2 | 1 1 . . . Missiles Intercepted . | . . . . . Alert | -11 -10 -10 -10 -9 ------- Run | Scr Mat Min Exi Min Peak Influence 280 | 15 280 264 . 247 Initial 9 | . 9 1 . . Average 81 | 6 91 75 . 165 Maximum Alert Level 1 | . 1 1 . 1 Low Security (%) 89 | 100 90 87 . 68 Level 1 10 | . 9 12 . 31 Level 2 . | . . . . . Level 3 . | . . . . . Level 4 . | . . . . . Level 5 . | . . . . . High Security . | . . . . . Max Security . | . . . . . Squads Dispatched 3 | . 3 . . . Investigation 1 | . 1 . . . Extermination . | . . . . . Reinforcement 2 | . 2 . . . Assault . | . . . . . Garrison . | . . . . . Intercept . | . . . . . Searches Triggered . | . . . . . Construction Impeded . | . . . . . Haulers Reinforced . | . . . . . Active Scanning Responses . | . . . . . Cargo Convoy Interrupts . | . . . . . Stealth | -11 -10 -10 -10 -9 --------- Run | Scr Mat Min Exi Min Distress Signals 3 | . 3 . . . Communications Jammed . | . . . . . Distress Signals . | . . . . . Times Spotted 42 | . 23 7 . 12 Peak Tracking Total 4 | . 4 3 . 4 Tactical Retreats 1 | . . 1 . . Traps | -11 -10 -10 -10 -9 ------- Run | Scr Mat Min Exi Min Traps Triggered . | . . . . . Indirectly . | . . . . . Trap Hack Attempts . | . . . . . Triggered . | . . . . . Disarmed . | . . . . . Reprogrammed . | . . . . . Reused . | . . . . . Traps Extracted . | . . . . . Installed . | . . . . . Triggered . | . . . . . Machines | -11 -10 -10 -10 -9 ---------- Run | Scr Mat Min Exi Min Machines Disabled . | . . . . . Max in Single Turn . | . . . . . Machines Sabotaged . | . . . . . Garrisons Compromised . | . . . . . Overloaded Fab Kills . | . . . . . Hacking | -11 -10 -10 -10 -9 --------- Run | Scr Mat Min Exi Min Machines Accessed 8 | . 7 . 1 . Terminals 4 | . 4 . . . Fabricators . | . . . . . Repair Stations 1 | . 1 . . . Recycling Units 2 | . 2 . . . Scanalyzers . | . . . . . Garrison Access . | . . . . . Total Hacks 14 | . 13 . 1 . Successful 9 | . 8 . 1 . Failed 5 | . 5 . . . Catastrophic 1 | . 1 . . . Database Lockouts . | . . . . . Manual 9 | . 8 . 1 . Terminals 8 | . 8 . . . Fabricators . | . . . . . Repair Stations 2 | . 2 . . . Recycling Units 3 | . 3 . . . Scanalyzers . | . . . . . Garrison Access . | . . . . . Terminal Hacks 3 | . 2 . 1 . Robot Analysis 1 | . 1 . . . Unreport Threat 1 | . 1 . . . EX-Prototype ID Bank 1 | . . . 1 . Fabricator Hacks . | . . . . . Repair Station Hacks 2 | . 2 . . . Scan Component 1 | . 1 . . . Repair 1 | . 1 . . . Recycling Unit Hacks 3 | . 3 . . . Report Inventory 2 | . 2 . . . Retrieve Components 1 | . 1 . . . Scanalyzer . | . . . . . Garrison Access Hacks . | . . . . . Unauthorized Hacks 1 | . 1 . . . Terminals 1 | . 1 . . . Botnet 1 | . 1 . . . Fabricators . | . . . . . Repair Stations . | . . . . . Recycling Units . | . . . . . Scanalyzers . | . . . . . Garrison Access . | . . . . . Data Cores Recovered . | . . . . . Used . | . . . . . Hacking Detections 5 | . 5 . . . Full Trace Events . | . . . . . Feedback Events . | . . . . . Feedback Blocked . | . . . . . Robot Schematics Acquired . | . . . . . Robots Built . | . . . . . Authchips . | . . . . . Time . | . . . . . Total Robot Build Rating . | . . . . . Part Schematics Acquired . | . . . . . Parts Built . | . . . . . Authchips . | . . . . . Time . | . . . . . Total Part Build Rating . | . . . . . Parts Repaired 1 | . 1 . . . Time 26 | . 26 . . . Parts Recycled . | . . . . . Recycled Matter . | . . . . . Retrieved Matter . | . . . . . Retrieved Components 3 | . 3 . . . Parts Scanalyzed . | . . . . . Part Schematics Acquired . | . . . . . Parts Damaged . | . . . . . Bothacking | -11 -10 -10 -10 -9 ------------ Run | Scr Mat Min Exi Min Used RIF Installer . | . . . . . Robots Hacked . | . . . . . Non-combat . | . . . . . Combat . | . . . . . Robot Hacks Applied . | . . . . . Relay Couplers Released . | . . . . . Fabnet Peak Effective % . | . . . . . Robots Rewired . | . . . . . Allies Hacked . | . . . . . Hacks Repelled . | . . . . . Allies | -11 -10 -10 -10 -9 -------- Run | Scr Mat Min Exi Min Total Allies 1 | . . 1 . . Largest Group 1 | . . 1 1 . Highest-Rated Group 31 | . . 31 31 . Highest-Rated Ally 31 | . . 31 31 . Total Orders . | . . . . . Ally Attacks . | . . . . . Total Damage . | . . . . . Kills . | . . . . . Allies Corrupted . | . . . . . Allies Melted . | . . . . . Intel | -11 -10 -10 -10 -9 ------- Run | Scr Mat Min Exi Min Robot Analysis Total 1 | . 1 . . . Derelict Logs Recovered 2 | . . 2 . . Drone Launches . | . . . . . Drone Recoveries . | . . . . . Exploration | -11 -10 -10 -10 -9 ------------- Run | Scr Mat Min Exi Min Turns Passed 2791 | 177 1273 870 401 70 Spaces Moved 2006 | 90 790 750 342 34 Core 3 | 3 . . . . Treads 141 | 24 115 1 . 1 Legs . | . . . . . Wheels 1862 | 63 675 749 342 33 Hover . | . . . . . Flight . | . . . . . Fastest Speed 50 | 50 90 100 115 100 Average Speed 116 | 112 122 111 115 118 Slowest Speed 240 | 160 240 240 115 240 Overloaded Moves . | . . . . . Propulsion Burnouts . | . . . . . Robots Hopped . | . . . . . Cave-ins Triggered . | . . . . . Exploration Rate (%) 55 | 6 94 99 70 10 Regions Visited 4 Branch Regions 3 Pre-discovered Areas 1 | . . 1 . . Known Exits Taken . | . . . . . Unknown Exits Taken 4 | 1 1 1 1 . Scrap Searched 1 | . . 1 . . Spaces Dug 13 | . 13 . . . Terrain Destroyed 170 | 3 16 55 . 96 Melee 13 | . 13 . . . Projectile . | . . . . . AOE 157 | 3 3 55 . 96 Terrain Rammed . | . . . . . Walls Destroyed . | . . . . . Machines Disabled . | . . . . . Actions | -11 -10 -10 -10 -9 --------- Run | Scr Mat Min Exi Min Total 2284 | 131 972 781 349 51 Wait 63 | . 55 4 4 . Move 2002 | 89 789 749 341 34 Hop . | . . . . . Pick Up 36 | 8 18 9 1 . Fast Attach 16 | 12 4 . . . Attach 6 | . 1 3 . 2 Detach . | . . . . . Swap 29 | 2 20 3 2 2 Drop 23 | . 16 6 1 . Fire 81 | 20 42 6 . 13 Melee 27 | . 27 . . . Ram 1 | . . 1 . . Kick . | . . . . . Crush . | . . . . . Escape Stasis . | . . . . . Rewire . | . . . . . Trap . | . . . . . Miscellaneous . | . . . . . Route ------- -11/Scrapyard -10/Materials (discovered 5 exits: [*Mat x3] / [*Min x2]) -10/Mines (discovered 3 exits: [*Mat x2] / *Exi) -10/Exiles -9/Mines History --------- Turn | Location | Event 13 | -11/Scrapyard | Discovered new exit (range 15) 70 | -11/Scrapyard | Released all parts (6) 178 | -11/Scrapyard | Entered Materials 271 | -10/Materials | Met 8R-AWN 305 | -10/Materials | Discovered new exit (range 7) 317 | -10/Materials | Build established: Mutant 370 | -10/Materials | Repaired Lgt. Armor Plating 398 | -10/Materials | Discovered new exit (range 11) 669 | -10/Materials | Discovered new exit (range 15) 835 | -10/Materials | Discovered new exit (range 4) 847 | -10/Materials | Discovered new exit (range 16) 1451 | -10/Materials | Entered Mines 1452 | -10/Mines | Met a Derelict bent on vengeance 1453 | -10/Mines | Followed 8R-AWN into the Mines 1458 | -10/Mines | Received a Rocket Launcher from a helpful Derelict 1711 | -10/Mines | Discovered new exit (range 6) 1819 | -10/Mines | Learned location of 1 exit from Materials 1825 | -10/Mines | Found a hidden stash of uninstalled traps 1863 | -10/Mines | Discovered new exit (range 5) 1915 | -10/Mines | A weapon hastily lodged in a ceiling crevice suddenly fell to the ground 2032 | -10/Mines | Discovered new exit (range 7) 2136 | -10/Mines | Learned location of Zion (-7) 2140 | -10/Mines | Received a Mining Laser from a helpful Derelict 2321 | -10/Mines | Entered Exiles 2321 | -10/Exiles | Accompanied by 1 ally 2357 | -10/Exiles | Welcomed by 8R-AWN 2375 | -10/Exiles | Met EX-HEX 2420 | -10/Exiles | Met EX-BIN 2481 | -10/Exiles | Aligned with FarCom system 2482 | -10/Exiles | Given EX-Vault access code 2512 | -10/Exiles | Opened EX-Vault 2522 | -10/Exiles | Found Longsword +1 2548 | -10/Exiles | Warned to stay clear of 0b10 Research branches 2583 | -10/Exiles | Met EX-DEC 2707 | -10/Exiles | Discovered new exit (range 14) 2722 | -10/Exiles | Left Exiles lab with Longsword +1 2722 | -10/Exiles | Entered Mines 2723 | -9/Mines | Assembled infested the area 2778 | -9/Mines | Core integrity fell below 50% 2786 | -9/Mines | Core integrity fell below 20% 2792 | -9/Mines | Destroyed self with Mini Grenade Launcher Last Messages --------------- 02724_ S-10 Pest destroyed. 02725_ The unstable cave ceiling collapses. 02753_ Lgt. Armor Plating destroyed. 02754_ as-27145 destroyed. 02758_ The unstable cave ceiling collapses. 02765_ as-01571 destroyed. 02765_ Destroyed Asb. F-torch. 02770_ Lgt. Ion Engine destroyed. 02770_ Destroyed Lgt. Ion Engine. 02770_ as-17445 destroyed. 02775_ C-30 ARC bursts open, deploying its payload. 02775_ D-53 Grenadier unfolds itself. 02775_ as-44250 destroyed. 02775_ as-20001 destroyed. 02778_ The unstable cave ceiling collapses. 02779_ Com. Wheel destroyed. 02781_ as-59316 destroyed. 02781_ Com. Wheel destroyed. 02783_ Lgt. Treads destroyed. 02785_ The unstable cave ceiling collapses. Map ----- +----------------------------------------------------+ | | | | | | | | | | | | | | | | | | | | | | | ??????????????????????????????????? | | ??????????????????????????????????? | | ??????????????????????????????????? | | ?????????????????????###?###??????? | | ?????????????????##### # ######??? | | ???????????????### #??? | | ???????????????? # #??? | | ????????????????? ???? | | ?????????????????? ##??? | | ??????????????????? #??? | | ???????????????????? #??? | | ????????????????????## #??? | | ?????????? ????### # # ###?? | | ?????????# # # # #?? | | ???????????# @ #?? | | ????????????# ##?? | | ?????????????# #?? | | ????????????# d #?? | | ????????????# % d #?? | | ????????????## #?? | | ?????????????# # #?? | | ????????????#### # ######?#?? | | ???????????## ####????????? | | ???????????# #???????????? | | ???????????# ##???????????? | | ???????????## ######????????????? | | ????????????## #?????????????????? | | ?????????????# #????????g?g??????? | | ?????????????# #?????????????????? | | ?????????????# ?????????????????? | | ?????????????# ?????????????????? | | ?????????????# ????????????????? | | ????????????? = ????????????????? | | ?????????????# %% ????????????????? | | ????????????? * ???????????????? | | ????????????? # %* ???????????????? | | ?????????????###= ???????????????? | | ????????????????# ??????????????? | | ?????????????????##???????????????? | +----------------------------------------------------+ Best States ------------- Heat Dissipation 25 Energy Generation 10 Energy Capacity 125 Matter Stores 300 Matter Capacity 300 Sight Range 16 Terrain Scan Density 10 Armor Coverage 150 Evasion (%) 44 Recoil Reduction 2 Item Schematics ----------------- None Robot Schematics ------------------ None Fabricated ------------ Nothing Alien Tech Used ----------------- None Achievements -------------- None Challenges ------------ None Game ------ Seed SalvageSurgePod Manual? 0 Play Time 00:35:25 Cumulative 105.7 hours Start 2022.07.29 @ 19:59:54 End 2022.07.30 @ 08:59:14 Sessions 2 Manual Loads 0 Difficulty Rogue Special Mode None Game No. 68 Rogue 67 Adventurer 0 Explorer 1 Win Type - Total 0 Types 0/0/0/0/0/0/0/0/0 Lore% 26 Gallery% 37 Achievement% 29 Wizard Run 0 Options --------- ASCII 0 Keyboard 0 Movement Mouse Keybinds 0 Fullscreen 0 Font 16/SmallcapsGlow Map View 76x50 Tactical HUD 1 Map Filters NONE Filters NONE Steam 1 RUN: a5fb1502-c2a0-4cb5-862d-c4d253d710d9